[Event "FIDE WCCC U12 2018"]
[Site "Santiago de Compostela"]
[Date "2018.11.08"]
[Round "4"]
[White "Ohanyan, Emin"]
[Black "Lazavik, Denis"]
[Result "1/2-1/2"]
[ECO "C47"]
[WhiteElo "1742"]
[BlackElo "2235"]
[Annotator "NA"]
[PlyCount "61"]
[EventDate "2018.11.04"]
[EventType "swiss"]
[EventCountry "ESP"]
[SourceTitle "playchess.com"]
[Source "ChessBase"]
[SourceQuality "1"]
[TimeControl "40/5400+30:1800+30"]

{[%evp 10,61,-1,0,-5,-11,-5,-11,0,-8,-10,0,3,0,32767,32767,0,0,0,0,8,0,0,0,0,0,0,0,0,0,0,0,0,0,32767,0,0,0,0,0,0,0,0,0,0,0,32767,0,0,0,0,0,0,0]} 1. e4 {[%emt 0:00:00]} e5 {[%emt 0:00:00]} 2. Nf3 {[%emt 0:00:00]} Nc6 {[%emt 0:00:42]} 3. Nc3 {[%emt 0:00:00]} Nf6 {[%emt 0:00:55]} 4. d4 {[%emt 0:00:00]} exd4 {[%emt 0:01:48]} 5. Nd5 {[%emt 0:00:09]} Be7 {[%emt 0:05:21]} 6. Nxd4 {[%emt 0:00:09]} Nxd5 {[%emt 0:07:43] LiveBook: 17 Games} 7. exd5 {[%emt 0:00:07]} Nxd4 {[%emt 0:01:00]} 8. Qxd4 {[%emt 0:00:10]} O-O {[%emt 0:03:43]} 9. Be2 {[%emt 0:02:36]} d6 {[%emt 0:03:19]} 10. O-O {[%emt 0:00:27]} Bf5 {[%emt 0:03:26]} 11. Bd3 {[%emt 0:09:53]} Bf6 {[%emt 0:03:19]} 12. Qc4 {[%emt 0:00:15]} Bxd3 {[%emt 0:01:19]} 13. Qxd3 {[%emt 0:01:10]} Qd7 {[%emt 0:02:18]} 14. Bd2 {[%emt 0:05:13]} Rfe8 {[%emt 0:07:12]} 15. Rfe1 {[%emt 0:08:42]} a6 {[%emt 0:04:36]} 16. Bc3 {[%emt 0:01:53]} Bxc3 {[%emt 0:08:10]} 17. Qxc3 {[%emt 0:00:38]} Rxe1+ {[%emt 0:02:15]} 18. Rxe1 {[%emt 0:01:07]} Re8 {[%emt 0:00:54]} 19. h3 {[%emt 0:05:23]} Rxe1+ {[%emt 0:06:09]} 20. Qxe1 {[%emt 0:00:59]} h6 {[%emt 0:00:42]} 21. Qe4 {[%emt 0:12:40]} a5 {[%emt 0:13:00]} 22. Kh2 {[%emt 0:09:41]} Qd8 {[%emt 0:01:55]} 23. c3 {[%emt 0:08:33]} b6 {[%emt 0:01:40]} 24. f4 {[%emt 0:03:24]} h5 {[%emt 0:01:52]} 25. g3 {[%emt 0:06:23]} g6 {[%emt 0:01:21]} 26. Kg2 {[%emt 0:03:36]} Qd7 {[%emt 0:00:48]} 27. a4 Kg7 28. b3 {[%emt 0:00:47]} Kg8 {[%emt 0:00:53]} 29. c4 {[%emt 0:00:07]} Kg7 {[%emt 0:00:24]} 30. Qd4+ {[%emt 0:02:15]} Kg8 {[%emt 0:00:10]} 31. Qe4 $11 {[%emt 0:06:46]} 1/2-1/2